[Event "Fagernes Chess GM-Swiss 2025"]
[Site "Fagernes"]
[Date "2025.04.19"]
[Round "8.19"]
[White "Hedman, Erik"]
[Black "Pang, Ethan"]
[Result "1-0"]
[Annotator "RC"]
[ECO "B40"]
[WhiteElo "2276"]
[BlackElo "2257"]
[PlyCount "41"]
[EventDate "2025.04.12"]
[EventCountry "NOR"]
[SourceTitle "playchess.com"]
[Source "ChessBase"]
[SourceQuality "1"]
[TimeControl "40/6000+30:2400+30"]

1. e4 {[%emt 0:00:03]} c5 {[%emt 0:04:59]} 2. Nf3 {[%emt 0:02:55]} e6 {[%emt 0:00:32]} 3. g3 {[%emt 0:00:33]} Nc6 {[%emt 0:04:14]} 4. Bg2 {[%emt 0:01:51]} d5 {[%emt 0:06:30]} 5. exd5 {[%emt 0:00:43]} exd5 {[%emt 0:00:22]} 6. d4 {[%emt 0:00:07]} Bg4 {[%emt 0:09:32]} 7. O-O {[%emt 0:00:09]} Nxd4 {[%emt 0:11:33]} 8. Qe1+ {[%emt 0:04:38]} Be7 {[%emt 0:21:33]} 9. Nxd4 {[%emt 0:00:41]} cxd4 {[%emt 0:00:05]} 10. Qe5 {[%emt 0:01:07]} Be6 {[%emt 0:00:34]} 11. Qxd4 {[%emt 0:01:48]} Bf6 {[%emt 0:00:45]} 12. Qa4+ {[%emt 0:07:05]} Qd7 {[%emt 0:10:55]} 13. Qxd7+ {[%emt 0:01:19]} Kxd7 {[%emt 0:00:22]} 14. Rd1 {[%emt 0:03:26]} Ne7 {[%emt 0:06:00]} 15. c4 {[%emt 0:00:55]} Rad8 {[%emt 0:05:15]} 16. Nc3 {[%emt 0:06:00]} Bxc3 {[%emt 0:04:31]} 17. bxc3 {[%emt 0:03:42]} Kc6 {[%emt 0:05:19]} 18. Ba3 {[%emt 0:05:58]} Nc8 {[%emt 0:02:23]} 19. cxd5+ {[%emt 0:01:13]} Bxd5 {[%emt 0:00:18]} 20. Rxd5 {[%emt 0:00:15]} Rxd5 {[%emt 0:00:18]} 21. c4 {[%emt 0:00:14]} 1-0

[Event "Fagernes Chess GM-Swiss 2025"]
[Site "Fagernes"]
[Date "2025.04.19"]
[Round "8.20"]
[White "Hebbar, Eshaan"]
[Black "Melaa, Sondre"]
[Result "1/2-1/2"]
[Annotator "RC"]
[ECO "D46"]
[WhiteElo "2175"]
[BlackElo "2344"]
[PlyCount "91"]
[EventDate "2025.04.12"]
[EventCountry "NOR"]
[SourceTitle "playchess.com"]
[Source "ChessBase"]
[SourceQuality "1"]
[TimeControl "40/6000+30:2400+30"]

1. d4 {[%emt 0:00:03]} Nf6 {[%emt 0:08:16]} 2. c4 {[%emt 0:00:06]} e6 {[%emt 0:00:23]} 3. Nf3 {[%emt 0:00:10]} d5 {[%emt 0:00:12]} 4. Nc3 {[%emt 0:00:05]} c6 {[%emt 0:00:16]} 5. e3 {[%emt 0:00:14]} Nbd7 {[%emt 0:00:06]} 6. Qc2 {[%emt 0:00:07]} Bd6 {[%emt 0:00:09]} 7. Bd3 {[%emt 0:00:05]} O-O {[%emt 0:00:13]} 8. O-O {[%emt 0:00:07]} dxc4 {[%emt 0:00:04]} 9. Bxc4 {[%emt 0:00:08]} b5 {[%emt 0:00:04]} 10. Bd3 {[%emt 0:00:08]} Bb7 {[%emt 0:00:24]} 11. e4 {[%emt 0:00:14]} e5 {[%emt 0:00:12]} 12. dxe5 {[%emt 0:00:07]} Nxe5 {[%emt 0:00:05]} 13. Nxe5 {[%emt 0:00:07]} Bxe5 {[%emt 0:00:05]} 14. h3 {[%emt 0:00:12]} Re8 {[%emt 0:00:59]} 15. Be3 {[%emt 0:11:53]} a6 {[%emt 0:00:09]} 16. Rad1 {[%emt 0:04:22]} Qe7 {[%emt 0:39:20]} 17. Ne2 {[%emt 0:01:31]} Bd6 {[%emt 0:07:36]} 18. Nd4 {[%emt 0:05:13]} g6 {[%emt 0:03:30]} 19. Nb3 {[%emt 0:01:57]} c5 {[%emt 0:07:45]} 20. Bxc5 {[%emt 0:03:19]} Nxe4 {[%emt 0:03:03]} 21. Bxe4 {[%emt 0:05:25]} Bxe4 {[%emt 0:00:53]} 22. Qc3 {[%emt 0:00:08]} Qg5 {[%emt 0:03:49]} 23. f3 {[%emt 0:21:04]} Be5 {[%emt 0:00:17]} 24. Qd2 {[%emt 0:02:24]} Bf4 {[%emt 0:04:26]} 25. Qf2 {[%emt 0:00:25]} Bf5 {[%emt 0:02:02]} 26. Kh1 {[%emt 0:03:25]} Rac8 {[%emt 0:01:13]} 27. Rd5 {[%emt 0:12:46]} Qh6 {[%emt 0:03:15]} 28. Bd4 {[%emt 0:12:32]} Rc2 {[%emt 0:01:17]} 29. Re1 {[%emt 0:05:00]} Rec8 {[%emt 0:04:40]} 30. Re2 {[%emt 0:01:32]} Bxh3 {[%emt 0:10:43]} 31. Rxc2 {[%emt 0:10:25]} Bf5+ {[%emt 0:00:28]} 32. Kg1 {[%emt 0:00:13]} Bxc2 {[%emt 0:00:56]} 33. Nc5 {[%emt 0:01:53]} Qh2+ {[%emt 0:02:54]} 34. Kf1 {[%emt 0:00:05]} Bb1 {[%emt 0:00:14]} 35. a3 {[%emt 0:03:35]} Qh1+ {[%emt 0:01:08]} 36. Qg1 {[%emt 0:00:18]} Qh4 {[%emt 0:00:06]} 37. Bc3 {[%emt 0:03:35]} Ba2 {[%emt 0:06:45]} 38. Qd4 {[%emt 0:01:49]} Bc4+ {[%emt 0:00:31]} 39. Nd3 {[%emt 0:00:06]} f6 {[%emt 0:00:56]} 40. Rd8+ {[%emt 0:01:32]} Rxd8 {[%emt 0:00:11]} 41. Qxd8+ {[%emt 0:40:05]} Kg7 {[%emt 0:02:58]} 42. Qe7+ {[%emt 0:00:00]} Kg8 {[%emt 0:02:36]} 43. Qe8+ {[%emt 0:00:00]} Kg7 {[%emt 0:00:06]} 44. Qe7+ {[%emt 0:00:00]} Kg8 {[%emt 0:00:21]} 45. Qe8+ {[%emt 0:00:00]} Kg7 {[%emt 0:00:04]} 46. Qe7+ {[%emt 0:00:00]} 1/2-1/2

[Event "Fagernes Chess GM-Swiss 2025"]
[Site "Fagernes"]
[Date "2025.04.19"]
[Round "8.21"]
[White "Olsen, William Alexander"]
[Black "Gandrud, Vegar Koi"]
[Result "1-0"]
[Annotator "RC"]
[ECO "B50"]
[WhiteElo "2188"]
[BlackElo "2273"]
[PlyCount "111"]
[EventDate "2025.04.12"]
[EventCountry "NOR"]
[SourceTitle "playchess.com"]
[Source "ChessBase"]
[SourceQuality "1"]
[TimeControl "40/6000+30:2400+30"]

1. e4 {[%emt 0:00:04]} c5 {[%emt 0:00:06]} 2. Nf3 {[%emt 0:00:24]} d6 {[%emt 0:00:05]} 3. Nc3 {[%emt 0:00:04]} Nf6 {[%emt 0:00:21]} 4. e5 {[%emt 0:00:11]} dxe5 {[%emt 0:01:36]} 5. Nxe5 {[%emt 0:00:05]} e6 {[%emt 0:01:05]} 6. Be2 {[%emt 0:00:09]} Nbd7 {[%emt 0:06:31]} 7. d4 {[%emt 0:02:38]} cxd4 {[%emt 0:07:46]} 8. Qxd4 {[%emt 0:00:42]} Bc5 {[%emt 0:06:19]} 9. Qa4 {[%emt 0:01:48]} O-O {[%emt 0:14:47]} 10. Nd3 {[%emt 0:01:25]} Be7 {[%emt 0:06:15]} 11. Bf3 {[%emt 0:17:55]} Nb6 {[%emt 0:05:06]} 12. Qb3 {[%emt 0:00:47]} Nfd5 {[%emt 0:02:08]} 13. Nxd5 {[%emt 0:00:53]} Nxd5 {[%emt 0:00:36]} 14. c4 {[%emt 0:03:34]} Nb6 {[%emt 0:02:39]} 15. O-O {[%emt 0:04:33]} Bd7 {[%emt 0:07:08]} 16. Ne5 {[%emt 0:17:34]} Ba4 {[%emt 0:02:57]} 17. Qe3 {[%emt 0:03:12]} Bf6 {[%emt 0:06:51]} 18. b3 {[%emt 0:07:57]} Qc7 {[%emt 0:03:40]} 19. Bb2 {[%emt 0:01:16]} Nd7 {[%emt 0:08:55]} 20. Nxd7 {[%emt 0:04:39]} Bxd7 {[%emt 0:00:43]} 21. Bxf6 {[%emt 0:00:08]} gxf6 {[%emt 0:00:01]} 22. Qh6 {[%emt 0:01:33]} f5 {[%emt 0:01:25]} 23. Qg5+ {[%emt 0:00:52]} Kh8 {[%emt 0:00:06]} 24. Qf6+ {[%emt 0:00:04]} Kg8 {[%emt 0:00:03]} 25. Rad1 {[%emt 0:03:44]} Qd8 {[%emt 0:04:08]} 26. Qxd8 {[%emt 0:04:55]} Rfxd8 {[%emt 0:00:02]} 27. Bxb7 {[%emt 0:00:09]} Rab8 {[%emt 0:00:03]} 28. Bf3 {[%emt 0:00:18]} Kf8 {[%emt 0:01:59]} 29. Rd6 {[%emt 0:01:05]} Rb6 {[%emt 0:00:15]} 30. Rfd1 {[%emt 0:01:21]} Ke7 {[%emt 0:00:05]} 31. R6d2 {[%emt 0:00:52]} Rbb8 {[%emt 0:02:54]} 32. Kf1 {[%emt 0:05:00]} Rbc8 {[%emt 0:00:12]} 33. Ke2 {[%emt 0:04:37]} Rc7 {[%emt 0:00:09]} 34. Ke3 {[%emt 0:03:48]} Rg8 {[%emt 0:01:57]} 35. g3 {[%emt 0:00:05]} Rg6 {[%emt 0:00:44]} 36. Rd6 {[%emt 0:03:20]} f6 {[%emt 0:10:06]} 37. c5 {[%emt 0:00:54]} f4+ {[%emt 0:05:28]} 38. Kxf4 {[%emt 0:03:14]} Rg5 {[%emt 0:00:06]} 39. b4 {[%emt 0:02:31]} Rf5+ {[%emt 0:00:12]} 40. Ke3 {[%emt 0:00:40]} Re5+ {[%emt 0:00:09]} 41. Kd4 {[%emt 0:44:34]} Ba4 {[%emt 0:42:51]} 42. Rc1 {[%emt 0:07:09]} Bb5 {[%emt 0:00:00]} 43. Be4 {[%emt 0:00:00]} Rg5 {[%emt 0:00:00]} 44. Ke3 {[%emt 0:00:00]} Re5 {[%emt 0:00:00]} 45. f4 {[%emt 0:00:00]} Rh5 {[%emt 0:00:00]} 46. Rc2 {[%emt 0:00:00]} Be8 {[%emt 0:00:00]} 47. Bf3 {[%emt 0:00:00]} Rh6 {[%emt 0:00:00]} 48. Re2 {[%emt 0:00:00]} a5 {[%emt 0:00:00]} 49. Kd4 {[%emt 0:00:00]} f5 {[%emt 0:00:00]} 50. Bd5 {[%emt 0:00:00]} axb4 {[%emt 0:00:00]} 51. Rexe6+ {[%emt 0:00:00]} Rxe6 {[%emt 0:00:00]} 52. Rxe6+ {[%emt 0:00:00]} Kd8 {[%emt 0:00:00]} 53. c6 {[%emt 0:00:00]} Ra7 {[%emt 0:00:00]} 54. Ke5 {[%emt 0:00:00]} Bg6 {[%emt 0:00:00]} 55. Kd6 {[%emt 0:00:00]} Bf7 {[%emt 0:00:00]} 56. Rf6 {[%emt 0:00:00]} 1-0

[Event "Fagernes Chess GM-Swiss 2025"]
[Site "Fagernes"]
[Date "2025.04.19"]
[Round "8.22"]
[White "Oksendal, Martin"]
[Black "Torfoss, Sivert Schanche"]
[Result "1/2-1/2"]
[Annotator "RC"]
[ECO "C88"]
[WhiteElo "2250"]
[BlackElo "2141"]
[PlyCount "80"]
[EventDate "2025.04.12"]
[EventCountry "NOR"]
[SourceTitle "playchess.com"]
[Source "ChessBase"]
[SourceQuality "1"]
[TimeControl "40/6000+30:2400+30"]

1. e4 {[%emt 0:03:54]} e5 {[%emt 0:00:06]} 2. Nf3 {[%emt 0:00:42]} Nc6 {[%emt 0:00:05]} 3. Bb5 {[%emt 0:00:04]} a6 {[%emt 0:00:05]} 4. Ba4 {[%emt 0:00:03]} Nf6 {[%emt 0:00:13]} 5. O-O {[%emt 0:00:36]} Be7 {[%emt 0:00:09]} 6. Re1 {[%emt 0:00:04]} b5 {[%emt 0:00:07]} 7. Bb3 {[%emt 0:00:01]} O-O {[%emt 0:00:13]} 8. a4 {[%emt 0:00:03]} Bb7 {[%emt 0:03:31]} 9. d3 {[%emt 0:00:13]} d6 {[%emt 0:00:44]} 10. Nbd2 {[%emt 0:00:08]} Nb8 {[%emt 0:02:08]} 11. axb5 {[%emt 0:01:08]} axb5 {[%emt 0:00:02]} 12. Rxa8 {[%emt 0:00:07]} Bxa8 {[%emt 0:00:04]} 13. Nf1 {[%emt 0:01:39]} Nbd7 {[%emt 0:11:52]} 14. Ng3 {[%emt 0:01:30]} c5 {[%emt 0:08:03]} 15. c3 {[%emt 0:15:00]} Nb6 {[%emt 0:03:57]} 16. Nf5 {[%emt 0:22:59]} Bc6 {[%emt 0:11:32]} 17. Qd2 {[%emt 0:14:06]} Nh5 {[%emt 0:12:52]} 18. Qe2 {[%emt 0:07:49]} g6 {[%emt 0:10:58]} 19. Nxe7+ {[%emt 0:13:33]} Qxe7 {[%emt 0:00:04]} 20. Bg5 {[%emt 0:00:11]} Qc7 {[%emt 0:06:51]} 21. Qe3 {[%emt 0:11:30]} c4 {[%emt 0:09:17]} 22. Bd1 {[%emt 0:01:19]} cxd3 {[%emt 0:02:35]} 23. Qxd3 {[%emt 0:01:35]} Nc4 {[%emt 0:03:11]} 24. Qe2 {[%emt 0:07:29]} f6 {[%emt 0:00:57]} 25. Bh6 {[%emt 0:00:20]} Rd8 {[%emt 0:04:15]} 26. b3 {[%emt 0:02:58]} Nb6 {[%emt 0:01:02]} 27. Qe3 {[%emt 0:02:30]} Ng7 {[%emt 0:02:05]} 28. Nh4 {[%emt 0:01:26]} d5 {[%emt 0:00:49]} 29. exd5 {[%emt 0:01:01]} Nxd5 {[%emt 0:00:16]} 30. Qg3 {[%emt 0:00:37]} Bd7 {[%emt 0:05:10]} 31. Qf3 {[%emt 0:00:39]} Be6 {[%emt 0:01:41]} 32. c4 {[%emt 0:00:27]} Qa5 {[%emt 0:02:05]} 33. Rf1 {[%emt 0:00:18]} bxc4 {[%emt 0:01:06]} 34. bxc4 {[%emt 0:00:07]} Nf4 {[%emt 0:00:56]} 35. Qb7 {[%emt 0:00:35]} Rd7 {[%emt 0:01:12]} 36. Qc8+ {[%emt 0:00:41]} Qd8 {[%emt 0:01:46]} 37. Qxd8+ {[%emt 0:00:18]} Rxd8 {[%emt 0:00:01]} 38. Bxf4 {[%emt 0:00:09]} exf4 {[%emt 0:00:38]} 39. Be2 {[%emt 0:00:27]} Rd2 {[%emt 0:01:22]} 40. Re1 {[%emt 0:00:34]} Rc2 {[%emt 0:03:58]} 1/2-1/2

[Event "Fagernes Chess GM-Swiss 2025"]
[Site "Fagernes"]
[Date "2025.04.19"]
[Round "8.23"]
[White "Skotheim, Andreas"]
[Black "Simonsen, David Mindestrommen"]
[Result "1/2-1/2"]
[Annotator "RC"]
[ECO "D95"]
[WhiteElo "2229"]
[BlackElo "2034"]
[PlyCount "80"]
[EventDate "2025.04.12"]
[EventCountry "NOR"]
[SourceTitle "playchess.com"]
[Source "ChessBase"]
[SourceQuality "1"]
[TimeControl "40/6000+30:2400+30"]

1. d4 {[%emt 0:00:12]} Nf6 {[%emt 0:00:12]} 2. c4 {[%emt 0:00:17]} g6 {[%emt 0:00:13]} 3. Nc3 {[%emt 0:00:23]} d5 {[%emt 0:00:04]} 4. Nf3 {[%emt 0:00:18]} Bg7 {[%emt 0:00:05]} 5. e3 {[%emt 0:00:13]} O-O {[%emt 0:01:31]} 6. Qb3 {[%emt 0:00:42]} dxc4 {[%emt 0:04:12]} 7. Bxc4 {[%emt 0:00:16]} c6 {[%emt 0:00:32]} 8. a4 {[%emt 0:01:52]} Nbd7 {[%emt 0:00:25]} 9. O-O {[%emt 0:02:33]} Nb6 {[%emt 0:03:14]} 10. Be2 {[%emt 0:02:08]} Be6 {[%emt 0:00:14]} 11. Qd1 {[%emt 0:01:13]} Nbd5 {[%emt 0:09:12]} 12. Bd2 {[%emt 0:12:20]} c5 {[%emt 0:06:04]} 13. dxc5 {[%emt 0:02:30]} Nd7 {[%emt 0:00:24]} 14. Nxd5 {[%emt 0:11:18]} Bxd5 {[%emt 0:00:17]} 15. Bb4 {[%emt 0:00:28]} Ne5 {[%emt 0:05:27]} 16. Nxe5 {[%emt 0:03:48]} Bxe5 {[%emt 0:01:29]} 17. Ba3 {[%emt 0:00:37]} e6 {[%emt 0:00:27]} 18. Bf3 {[%emt 0:08:30]} Qc7 {[%emt 0:01:14]} 19. g3 {[%emt 0:03:29]} Rfd8 {[%emt 0:01:50]} 20. Bxd5 {[%emt 0:03:51]} Rxd5 {[%emt 0:01:49]} 21. Qb3 {[%emt 0:04:58]} Rad8 {[%emt 0:05:23]} 22. Rfd1 {[%emt 0:03:27]} b6 {[%emt 0:02:17]} 23. cxb6 {[%emt 0:01:47]} Qxb6 {[%emt 0:00:39]} 24. Rxd5 {[%emt 0:06:45]} Qxb3 {[%emt 0:03:13]} 25. Rxd8+ {[%emt 0:00:08]} Kg7 {[%emt 0:00:06]} 26. Rd2 {[%emt 0:06:52]} h5 {[%emt 0:00:37]} 27. Bc5 {[%emt 0:02:11]} a5 {[%emt 0:01:35]} 28. h4 {[%emt 0:02:50]} Kh7 {[%emt 0:01:01]} 29. Bd4 {[%emt 0:04:31]} Bxd4 {[%emt 0:01:17]} 30. Rxd4 {[%emt 0:00:59]} Qxb2 {[%emt 0:00:05]} 31. Rad1 {[%emt 0:00:35]} Kg7 {[%emt 0:00:45]} 32. Rd7 {[%emt 0:02:16]} Qc2 {[%emt 0:00:34]} 33. R1d6 {[%emt 0:03:18]} Qxa4 {[%emt 0:00:17]} 34. Ra7 {[%emt 0:00:47]} e5 {[%emt 0:01:02]} 35. Rd5 {[%emt 0:04:32]} Qa2 {[%emt 0:01:33]} 36. Rdxa5 {[%emt 0:11:07]} Qb1+ {[%emt 0:00:06]} 37. Kg2 {[%emt 0:00:08]} Qe4+ {[%emt 0:01:13]} 38. Kf1 {[%emt 0:00:29]} Qb1+ {[%emt 0:00:14]} 39. Ke2 {[%emt 0:00:33]} Qc2+ {[%emt 0:00:46]} 40. Kf3 {[%emt 0:01:30]} Qf5+ {[%emt 0:01:31]} 1/2-1/2

[Event "Fagernes Chess GM-Swiss 2025"]
[Site "Fagernes"]
[Date "2025.04.19"]
[Round "8.24"]
[White "Skaar, Ben Samuel Groth"]
[Black "Brattgjerd, Isak Vinh"]
[Result "1/2-1/2"]
[Annotator "RC"]
[ECO "B11"]
[WhiteElo "2167"]
[BlackElo "2202"]
[PlyCount "94"]
[EventDate "2025.04.12"]
[EventCountry "NOR"]
[SourceTitle "playchess.com"]
[Source "ChessBase"]
[SourceQuality "1"]
[TimeControl "40/6000+30:2400+30"]

1. e4 {[%emt 0:51:27]} c6 {[%emt 0:22:06]} 2. Nc3 {[%emt 0:00:30]} d5 {[%emt 0:00:30]} 3. Nf3 {[%emt 0:00:30]} dxe4 {[%emt 0:00:30]} 4. Nxe4 {[%emt 0:00:30]} Nf6 {[%emt 0:00:30]} 5. Qe2 {[%emt 0:00:30]} Nxe4 {[%emt 0:00:30]} 6. Qxe4 {[%emt 0:00:30]} Nd7 {[%emt 0:00:30]} 7. Bc4 {[%emt 0:00:30]} Nf6 {[%emt 0:00:30]} 8. Ne5 {[%emt 0:00:30]} e6 {[%emt 0:00:30]} 9. Qe2 {[%emt 0:00:30]} b5 {[%emt 0:00:30]} 10. Bd3 {[%emt 0:00:30]} Bd6 {[%emt 0:00:30]} 11. Nxc6 {[%emt 0:00:30]} Qc7 {[%emt 0:00:30]} 12. Nd4 {[%emt 0:00:30]} a6 {[%emt 0:00:30]} 13. Nf5 {[%emt 0:00:30]} O-O {[%emt 0:00:30]} 14. Nxd6 {[%emt 0:00:30]} Qxd6 {[%emt 0:00:30]} 15. a4 {[%emt 0:00:30]} Bb7 {[%emt 0:00:30]} 16. O-O {[%emt 0:00:30]} bxa4 {[%emt 0:00:30]} 17. f3 {[%emt 0:00:30]} Bc6 {[%emt 0:00:30]} 18. Re1 {[%emt 0:00:30]} Rfd8 {[%emt 0:00:30]} 19. Qe5 {[%emt 0:00:30]} Qb4 {[%emt 0:00:30]} 20. Kh1 {[%emt 0:00:30]} Qh4 {[%emt 0:00:30]} 21. Qg3 {[%emt 0:00:30]} Qd4 {[%emt 0:00:30]} 22. Qe5 {[%emt 0:00:30]} Qf2 {[%emt 0:00:30]} 23. Qg3 {[%emt 0:00:30]} Qc5 {[%emt 0:00:30]} 24. Qe5 {[%emt 0:00:30]} Rd5 {[%emt 0:00:30]} 25. Qe3 {[%emt 0:00:30]} Qb4 {[%emt 0:00:30]} 26. Be4 {[%emt 0:00:30]} Rh5 {[%emt 0:00:30]} 27. Bxc6 {[%emt 0:00:30]} Qd6 {[%emt 0:00:30]} 28. h3 {[%emt 0:00:30]} Qxc6 {[%emt 0:00:30]} 29. c3 {[%emt 0:00:30]} Rh4 {[%emt 0:00:30]} 30. d4 {[%emt 0:00:30]} Rd8 {[%emt 0:00:30]} 31. Qf2 {[%emt 0:00:30]} Rh5 {[%emt 0:00:30]} 32. Bf4 {[%emt 0:00:30]} Nd5 {[%emt 0:00:30]} 33. Bh2 {[%emt 0:00:30]} Nb6 {[%emt 0:00:30]} 34. Re5 {[%emt 0:00:30]} Rxe5 {[%emt 0:00:30]} 35. Bxe5 {[%emt 0:00:30]} f6 {[%emt 0:00:30]} 36. Bf4 {[%emt 0:00:30]} Rd5 {[%emt 0:00:30]} 37. Qc2 {[%emt 0:00:30]} Rxd4 {[%emt 0:00:30]} 38. Be3 {[%emt 0:00:30]} Rd5 {[%emt 0:00:30]} 39. Bxb6 {[%emt 0:00:30]} Qxb6 {[%emt 0:00:30]} 40. Qxa4 {[%emt 0:00:30]} Kf7 {[%emt 0:00:30]} 41. b4 {[%emt 0:40:30]} Rd2 {[%emt 0:40:30]} 42. Rd1 {[%emt 0:00:30]} Qb5 {[%emt 0:00:30]} 43. Qb3 {[%emt 0:00:30]} Re2 {[%emt 0:00:30]} 44. c4 {[%emt 0:00:30]} Qe5 {[%emt 0:00:30]} 45. c5 {[%emt 0:00:30]} Re1+ {[%emt 0:00:30]} 46. Rxe1 {[%emt 0:00:30]} Qxe1+ {[%emt 0:00:30]} 47. Kh2 {[%emt 0:00:30]} Qe5+ {[%emt 0:00:30]} 1/2-1/2

[Event "Fagernes Chess GM-Swiss 2025"]
[Site "Fagernes"]
[Date "2025.04.19"]
[Round "8.25"]
[White "Andersen, Morten"]
[Black "Haugen, Lars Tormod"]
[Result "1-0"]
[Annotator "RC"]
[ECO "E61"]
[WhiteElo "2200"]
[BlackElo "1988"]
[PlyCount "95"]
[EventDate "2025.04.12"]
[EventCountry "NOR"]
[SourceTitle "playchess.com"]
[Source "ChessBase"]
[SourceQuality "1"]
[TimeControl "40/6000+30:2400+30"]

1. Nf3 {[%emt 0:00:30]} c5 {[%emt 0:05:24]} 2. e3 {[%emt 0:01:47]} g6 {[%emt 0:03:34]} 3. d4 {[%emt 0:02:12]} Bg7 {[%emt 0:00:05]} 4. c4 {[%emt 0:01:00]} Nf6 {[%emt 0:00:22]} 5. d5 {[%emt 0:00:27]} d6 {[%emt 0:02:52]} 6. Nc3 {[%emt 0:00:39]} O-O {[%emt 0:05:45]} 7. Be2 {[%emt 0:00:21]} e6 {[%emt 0:00:17]} 8. O-O {[%emt 0:00:16]} exd5 {[%emt 0:00:05]} 9. cxd5 {[%emt 0:00:06]} Bg4 {[%emt 0:04:59]} 10. h3 {[%emt 0:00:47]} Bxf3 {[%emt 0:00:13]} 11. Bxf3 {[%emt 0:00:03]} Na6 {[%emt 0:05:37]} 12. Re1 {[%emt 0:15:44]} Rb8 {[%emt 0:01:59]} 13. Be2 {[%emt 0:03:41]} Nc7 {[%emt 0:02:15]} 14. a4 {[%emt 0:01:37]} Re8 {[%emt 0:10:25]} 15. f3 {[%emt 0:12:54]} a6 {[%emt 0:10:19]} 16. a5 {[%emt 0:03:40]} Nh5 {[%emt 0:01:03]} 17. Ra4 {[%emt 0:07:10]} b5 {[%emt 0:05:15]} 18. axb6 {[%emt 0:00:21]} Rxb6 {[%emt 0:00:03]} 19. Bc4 {[%emt 0:05:17]} Ng3 {[%emt 0:08:44]} 20. Qd3 {[%emt 0:04:36]} Rb4 {[%emt 0:07:56]} 21. Rxb4 {[%emt 0:05:49]} cxb4 {[%emt 0:00:07]} 22. Ne2 {[%emt 0:00:57]} Qh4 {[%emt 0:04:13]} 23. Nxg3 {[%emt 0:02:47]} Qxg3 {[%emt 0:00:03]} 24. Re2 {[%emt 0:01:28]} a5 {[%emt 0:06:24]} 25. b3 {[%emt 0:03:21]} Be5 {[%emt 0:03:14]} 26. f4 {[%emt 0:00:56]} Bc3 {[%emt 0:00:19]} 27. Ra2 {[%emt 0:05:44]} g5 {[%emt 0:06:59]} 28. Rf2 {[%emt 0:03:37]} gxf4 {[%emt 0:06:26]} 29. Rxf4 {[%emt 0:00:25]} Qe1+ {[%emt 0:02:56]} 30. Rf1 {[%emt 0:07:08]} Qg3 {[%emt 0:01:08]} 31. Qf5 {[%emt 0:00:55]} Be5 {[%emt 0:02:19]} 32. Qxf7+ {[%emt 0:01:54]} Kh8 {[%emt 0:00:03]} 33. Qf3 {[%emt 0:04:07]} Qh2+ {[%emt 0:02:10]} 34. Kf2 {[%emt 0:00:02]} Rg8 {[%emt 0:00:02]} 35. Bd3 {[%emt 0:03:10]} Ne8 {[%emt 0:02:09]} 36. Rg1 {[%emt 0:07:34]} Nf6 {[%emt 0:01:28]} 37. Kf1 {[%emt 0:00:39]} Rf8 {[%emt 0:00:42]} 38. g4 {[%emt 0:01:53]} Nd7 {[%emt 0:00:53]} 39. Bf5 {[%emt 0:00:17]} Nc5 {[%emt 0:00:35]} 40. e4 {[%emt 0:03:03]} Nxb3 {[%emt 0:00:33]} 41. Qxb3 {[%emt 0:01:58]} Bd4 {[%emt 0:03:48]} 42. Be3 {[%emt 0:01:15]} Qxh3+ {[%emt 0:06:29]} 43. Ke2 {[%emt 0:00:37]} Qh2+ {[%emt 0:02:40]} 44. Kd1 {[%emt 0:01:17]} Bxe3 {[%emt 0:03:49]} 45. Qxe3 {[%emt 0:00:06]} b3 {[%emt 0:00:30]} 46. Qc3+ {[%emt 0:02:36]} Qe5 {[%emt 0:01:13]} 47. Qxe5+ {[%emt 0:00:17]} dxe5 {[%emt 0:00:02]} 48. Kc1 {[%emt 0:00:54]} 1-0

[Event "Fagernes Chess GM-Swiss 2025"]
[Site "Fagernes"]
[Date "2025.04.19"]
[Round "8.26"]
[White "Khoo-Thwe, Louis"]
[Black "Westrum, Kim Roger Hansen"]
[Result "1/2-1/2"]
[Annotator "RC"]
[ECO "C54"]
[WhiteElo "2118"]
[BlackElo "2193"]
[PlyCount "26"]
[EventDate "2025.04.12"]
[EventCountry "NOR"]
[SourceTitle "playchess.com"]
[Source "ChessBase"]
[SourceQuality "1"]
[TimeControl "40/6000+30:2400+30"]

1. e4 {[%emt 0:00:03]} e5 {[%emt 0:00:38]} 2. Nf3 {[%emt 0:00:09]} Nc6 {[%emt 0:00:16]} 3. Bc4 {[%emt 0:00:16]} Nf6 {[%emt 0:00:11]} 4. d3 {[%emt 0:00:07]} Bc5 {[%emt 0:00:18]} 5. Nbd2 {[%emt 0:00:44]} d6 {[%emt 0:01:04]} 6. c3 {[%emt 0:00:26]} a5 {[%emt 0:01:09]} 7. O-O {[%emt 0:00:27]} O-O {[%emt 0:00:15]} 8. Bb3 {[%emt 0:02:35]} h6 {[%emt 0:00:45]} 9. Re1 {[%emt 0:01:08]} Be6 {[%emt 0:00:34]} 10. Nf1 {[%emt 0:00:45]} Bxb3 {[%emt 0:18:09]} 11. Qxb3 {[%emt 0:00:24]} Qd7 {[%emt 0:00:12]} 12. Be3 {[%emt 0:01:44]} Bxe3 {[%emt 0:01:30]} 13. Nxe3 {[%emt 0:00:23]} a4 {[%emt 0:10:32]} 1/2-1/2

[Event "Fagernes Chess GM-Swiss 2025"]
[Site "Fagernes"]
[Date "2025.04.19"]
[Round "8.27"]
[White "Arvola, Daniel"]
[Black "Verbin, Valentina"]
[Result "0-1"]
[Annotator "RC"]
[ECO "B45"]
[WhiteElo "2088"]
[BlackElo "2113"]
[PlyCount "72"]
[EventDate "2025.04.12"]
[EventCountry "NOR"]
[SourceTitle "playchess.com"]
[Source "ChessBase"]
[SourceQuality "1"]
[TimeControl "40/6000+30:2400+30"]

1. e4 {[%emt 0:00:12]} c5 {[%emt 0:01:59]} 2. Nf3 {[%emt 0:00:09]} e6 {[%emt 0:00:27]} 3. d4 {[%emt 0:00:24]} cxd4 {[%emt 0:00:22]} 4. Nxd4 {[%emt 0:00:07]} Nf6 {[%emt 0:00:42]} 5. Nc3 {[%emt 0:00:09]} Nc6 {[%emt 0:00:52]} 6. Ndb5 {[%emt 0:00:12]} Bc5 {[%emt 0:00:53]} 7. Nd6+ {[%emt 0:02:22]} Ke7 {[%emt 0:00:07]} 8. Bf4 {[%emt 0:03:44]} e5 {[%emt 0:00:45]} 9. Nxc8+ {[%emt 0:09:39]} Rxc8 {[%emt 0:00:53]} 10. Bg5 {[%emt 0:00:36]} Kf8 {[%emt 0:12:20]} 11. Nd5 {[%emt 0:10:27]} Qa5+ {[%emt 0:15:53]} 12. Bd2 {[%emt 0:05:23]} Bxf2+ {[%emt 0:00:14]} 13. Kxf2 {[%emt 0:06:11]} Nxe4+ {[%emt 0:00:03]} 14. Ke1 {[%emt 0:00:27]} Qxd5 {[%emt 0:00:43]} 15. Bd3 {[%emt 0:00:10]} Nxd2 {[%emt 0:16:04]} 16. Qxd2 {[%emt 0:00:32]} e4 {[%emt 0:01:04]} 17. Be2 {[%emt 0:00:39]} Qxd2+ {[%emt 0:00:38]} 18. Kxd2 {[%emt 0:00:08]} d5 {[%emt 0:01:38]} 19. c3 {[%emt 0:00:58]} Ke7 {[%emt 0:02:13]} 20. Rad1 {[%emt 0:00:56]} f5 {[%emt 0:03:21]} 21. Ke3 {[%emt 0:00:34]} Ke6 {[%emt 0:01:47]} 22. Rhf1 {[%emt 0:00:24]} g5 {[%emt 0:02:13]} 23. g3 {[%emt 0:01:34]} Rcf8 {[%emt 0:01:54]} 24. Bb5 {[%emt 0:00:42]} Ke5 {[%emt 0:04:06]} 25. Ba4 {[%emt 0:00:32]} f4+ {[%emt 0:00:40]} 26. Ke2 {[%emt 0:00:23]} Ne7 {[%emt 0:06:04]} 27. Bb3 {[%emt 0:00:31]} Rd8 {[%emt 0:02:28]} 28. Rd4 {[%emt 0:00:26]} f3+ {[%emt 0:07:48]} 29. Kf2 {[%emt 0:00:28]} g4 {[%emt 0:05:16]} 30. Rb4 {[%emt 0:00:42]} b6 {[%emt 0:02:54]} 31. Rd1 {[%emt 0:00:30]} Rd6 {[%emt 0:03:16]} 32. Rbd4 {[%emt 0:01:25]} Rhd8 {[%emt 0:02:11]} 33. Bc2 {[%emt 0:00:46]} Nf5 {[%emt 0:06:21]} 34. Ra4 {[%emt 0:00:18]} Rh6 {[%emt 0:01:11]} 35. h4 {[%emt 0:01:13]} e3+ {[%emt 0:01:16]} 36. Ke1 {[%emt 0:00:19]} Nxg3 {[%emt 0:00:54]} 0-1